bitfinex/quotes_ETHUSD_20250905
["timestamp","ask_amount","ask_price","bid_price","bid_amount"]
[1757091425659,0.9074,4301.1,4301.0,5.32501165]
[1757091425965,1.208,4301.1,4301.0,5.32501165]
[1757091426143,1.3288,4301.1,4299.6,1.713]
[1757091426332,0.9074,4301.0,4300.5,2.3252676]
[1757091426536,0.9074,4301.0,4300.3,3.0]
[1757091426837,0.9074,4301.0,4300.6,2.32522566]
[1757091427052,0.3006,4300.7,4300.3,3.0]
[1757091427251,0.9074,4300.6,4300.3,3.0]
[1757091427570,0.3006,4300.4,4300.3,5.32541915]
[1757091428267,0.4342,4300.8,4300.4,2.32534552]
[1757091428571,0.4342,4300.7,4300.6,2.3252249]
[1757091428767,0.7348,4300.7,4300.6,2.3252249]
[1757091428983,0.7348,4300.7,4300.5,2.32530217]
[1757091429304,0.7348,4300.7,4300.4,2.32535079]
[1757091429474,0.7348,4300.7,4300.5,2.32530583]
[1757091429681,0.7348,4300.7,4300.3,3.0]
[1757091429682,0.7348,4300.7,4300.4,2.32536508]
[1757091429837,0.7348,4300.7,4300.6,2.32525694]
[1757091430039,0.3006,4300.7,4300.6,2.32525694]
[1757091430366,0.4514,4301.0,4300.7,2.32518458]
[1757091430592,0.2867,4300.8,4300.7,2.32518458]
[1757091431096,1.196,4300.8,4300.7,2.32518458]
[1757091431599,1.196,4300.8,4300.4,3.914]
[1757091431901,0.9093,4300.7,4300.4,6.2393571]
[1757091432067,0.2867,4300.5,4300.4,6.35536508]
[1757091432494,1.196,4300.5,4300.3,2.3253688]
[1757091432795,0.9093,4300.4,4300.3,2.3253688]
[1757091433096,1.196,4300.4,4300.2,5.32545177]
[1757091433300,0.9093,4300.3,4300.2,5.32545177]
[1757091433494,1.196,4300.3,4300.2,3.0]
[1757091433799,1.196,4300.3,4300.2,2.32547323]
[1757091434578,1.196,4300.3,4300.0,3.004]
[1757091434773,0.2867,4300.3,4300.2,2.32547323]
[1757091434981,0.7446,4300.3,4300.2,2.32547323]
[1757091435400,1.196,4300.3,4300.2,2.32547323]
[1757091436795,3.52143037,4300.3,4300.0,0.004]
[1757091437006,3.18313037,4300.3,4300.0,0.004]
[1757091437305,2.32552731,4300.1,4300.0,0.004]
[1757091437802,3.52152731,4300.1,4300.0,0.004]
[1757091438568,1.196,4300.1,4300.0,0.004]
[1757091438764,3.65308731,4300.1,4300.0,0.004]
[1757091440808,7.56808731,4300.1,4300.0,0.004]
[1757091441707,5.24256,4300.1,4300.0,0.004]
[1757091442104,0.4579,4300.7,4300.0,0.3171]
[1757091442272,3.914,4300.4,4300.2,2.32543368]
[1757091442604,3.914,4300.4,4300.0,0.004]
[1757091442806,3.914,4300.4,4300.1,2.32549682]
[1757091442974,3.914,4300.4,4300.0,0.004]
[1757091442975,3.914,4300.4,4300.2,2.32545979]
[1757091443175,3.914,4300.4,4300.0,0.004]
[1757091443375,3.914,4300.4,4300.3,2.32541915]
[1757091443592,3.914,4300.4,4300.1,2.32548414]
[1757091443773,3.914,4300.4,4300.2,2.32544679]
[1757091443969,3.914,4300.4,4300.2,2.3254468]
[1757091444510,3.914,4300.4,4300.2,2.32546454]
[1757091444683,3.914,4300.4,4300.3,2.32541915]
[1757091445094,3.914,4300.4,4300.2,2.3254457]
[1757091445288,3.914,4300.4,4300.3,2.32541915]
[1757091445493,3.914,4300.4,4300.0,0.004]
[1757091445690,3.914,4300.4,4300.2,2.32544204]
[1757091446496,3.914,4300.4,4300.1,2.32552731]
[1757091447009,3.914,4300.4,4300.1,2.32552541]
[1757091447211,3.914,4300.4,4300.0,0.41208895]
[1757091447389,0.2867,4300.1,4300.0,0.004]
[1757091447592,0.2867,4300.1,4300.0,2.32958139]
[1757091448303,3.914,4300.4,4300.0,0.3171]
[1757091448495,3.914,4300.4,4300.2,2.32542027]
[1757091448692,3.914,4300.4,4300.3,0.3131]
[1757091449024,0.001,4301.2,4300.3,1.3778]
[1757091449025,3.915,4300.9,4300.3,1.3778]
[1757091449229,3.915,4300.9,4300.4,2.3253242]
[1757091449399,4.8243,4300.9,4300.5,2.32528491]
[1757091449601,2.61197717,4300.6,4300.0,2.3295665]
[1757091449809,2.61197717,4300.6,4300.1,2.32548266]
[1757091449810,0.4027,4300.6,4300.1,2.32548266]
[1757091450129,0.4027,4300.6,4300.0,2.32957472]
[1757091450130,0.4027,4300.6,4300.4,2.32536508]
[1757091450331,0.2867,4300.6,4300.2,0.116]
[1757091450532,0.001,4301.1,4300.5,0.3131]
[1757091450533,0.117,4301.1,4300.5,0.3131]
[1757091450828,3.915,4301.0,4300.9,2.32509474]
[1757091451034,3.915,4301.0,4300.9,2.63819474]
[1757091451229,3.915,4301.0,4300.9,0.3131]
[1757091451530,3.915,4301.0,4300.9,2.63819474]
[1757091451729,0.001,4301.1,4301.0,2.32504068]
[1757091452094,0.001,4301.1,4300.9,2.32507362]
[1757091452095,0.2877,4301.1,4300.9,2.32507362]
[1757091452332,0.2877,4301.1,4301.0,2.32504068]
[1757091452634,0.001,4301.1,4301.0,2.32504068]
[1757091453035,0.001,4301.1,4301.0,2.63814068]
[1757091453628,0.001,4301.1,4301.0,3.7175684]
[1757091453840,0.001,4301.1,4301.0,3.2620684]
[1757091454401,0.001,4301.1,4301.0,2.9489684]
[1757091454605,0.001,4301.1,4301.0,2.44104068]
[1757091454807,0.001,4301.1,4301.0,2.75414068]
[1757091455504,0.2877,4301.1,4301.0,0.116]
[1757091455712,1.197,4301.1,4300.9,2.32507269]
[1757091456037,3.23437969,4301.0,4300.2,3.914]
[1757091456204,0.9093,4301.0,4300.3,3.0]
[1757091456405,3.914,4301.0,4300.7,2.32517061]
[1757091456635,0.2867,4300.8,4300.4,2.32532245]
[1757091456839,0.2867,4300.8,4300.3,3.0]
[1757091456840,0.2867,4300.8,4300.5,2.32526785]
[1757091457037,3.914,4301.0,4300.7,0.3131]
[1757091457235,0.2867,4300.8,4300.3,3.0]
[1757091457545,0.9093,4300.7,4300.2,6.23943294]
[1757091457732,0.2867,4300.3,4300.0,3.004]
[1757091457933,0.2867,4300.3,4300.2,2.32546181]
[1757091458642,4.3719,4301.0,4300.3,2.32539036]
[1757091458941,2.77652328,4300.9,4300.3,2.32539036]
[1757091459113,2.77652328,4300.9,4300.4,2.32535137]
[1757091459439,0.938,4300.8,4300.5,2.3253033]
[1757091459638,0.4463,4300.8,4300.3,2.32536789]
[1757091459939,0.4917,4300.9,4300.4,2.32532114]
[1757091460139,0.4917,4300.9,4300.0,3.004]
[1757091460440,0.938,4300.9,4300.4,2.32535103]
[1757091460660,0.938,4300.9,4300.6,2.32525255]
[1757091461163,0.001,4301.1,4301.0,2.32504068]
[1757091462157,0.299,4301.1,4300.6,3.0]
[1757091462360,0.299,4301.1,4300.7,2.32520137]
[1757091462361,0.938,4301.0,4300.7,2.32520137]
[1757091462536,0.4463,4301.0,4300.7,2.32520137]
[1757091462728,0.001,4301.1,4300.8,2.32513577]
[1757091462929,0.001,4301.1,4301.0,0.2888]
[1757091463147,0.001,4301.1,4300.7,2.32518705]
[1757091463352,0.4473,4301.1,4300.6,2.32525694]
[1757091463561,0.4473,4301.1,4300.7,2.32516209]
[1757091464057,0.298,4300.8,4300.6,2.32525583]
[1757091464532,0.4917,4301.0,4300.7,2.32520287]
[1757091464866,0.4473,4301.1,4300.7,2.32520287]
[1757091465639,2.77228739,4301.1,4300.6,2.32922937]
[1757091465847,0.939,4301.1,4300.6,2.32922937]
[1757091466057,0.939,4301.1,4300.7,2.32517314]
[1757091466364,0.939,4301.1,4300.6,0.004]
[1757091466548,0.001,4301.1,4300.8,2.32512425]
[1757091466757,0.001,4301.1,4300.7,2.32518551]
[1757091466932,0.001,4301.1,4300.6,2.32923594]
[1757091467132,0.4473,4301.1,4300.6,2.32923594]
[1757091467345,3.26399991,4301.1,4300.6,2.32923594]
[1757091467554,0.298,4300.7,4300.6,2.32923594]
[1757091467865,0.001,4301.1,4300.6,0.2928]
[1757091468178,0.001,4301.1,4301.0,2.32504068]
[1757091468543,0.001,4301.1,4301.0,2.61384068]
[1757091468738,0.001,4301.1,4301.0,3.05654068]
[1757091468984,0.001,4301.1,4301.0,10.09148647]
[1757091469270,3.915,4301.5,4301.4,6.52282447]
[1757091469573,0.001,4301.5,4301.4,6.81162447]
[1757091469737,0.001,4301.5,4301.4,7.25432447]
[1757091470071,0.001,4301.5,4301.4,7.72082447]
[1757091470268,0.001,4301.5,4301.4,7.27812447]
[1757091470569,0.001,4301.5,4301.4,20.29305431]
[1757091470778,0.001,4301.5,4301.4,23.29305431]
[1757091471180,0.001,4301.5,4301.4,29.8615001]
[1757091471882,0.001,4301.5,4301.4,18.46985431]
[1757091472086,0.299,4301.5,4301.4,16.80882447]
[1757091472246,0.299,4301.5,4301.4,13.80882447]
[1757091472578,0.7453,4301.5,4301.4,13.80882447]
[1757091472875,0.001,4301.5,4301.4,13.80882447]
[1757091473485,0.299,4301.5,4301.4,11.484]
[1757091473651,1.237,4301.5,4301.4,11.484]
[1757091473855,1.237,4301.5,4301.4,4.198]
[1757091474485,0.001,4301.5,4301.4,6.52282447]
[1757091475897,0.001,4301.5,4301.4,6.81162447]
[1757091476089,0.001,4301.5,4301.4,8.11667551]
[1757091476398,0.001,4301.5,4301.4,6.52282447]
[1757091476599,0.299,4301.5,4301.4,6.52282447]
[1757091478498,0.7907,4301.5,4301.4,4.198]
[1757091478698,1.237,4301.5,4301.4,4.198]
[1757091478899,1.237,4301.5,4301.4,4.41512928]
[1757091479594,1.237,4301.5,4301.4,7.47145375]
[1757091479595,0.001,4301.5,4301.4,7.47145375]
[1757091479802,0.026,4301.8,4301.7,6.51966234]
[1757091479992,0.026,4301.8,4301.7,4.41212928]
[1757091480373,0.026,4301.8,4301.7,4.70092928]
[1757091480700,0.026,4301.8,4301.7,7.02559162]
[1757091481390,0.026,4301.8,4301.7,11.96479162]
[1757091481592,0.026,4301.8,4301.7,13.32349959]
[1757091482808,0.026,4301.8,4301.7,13.03469959]
[1757091483105,1.262,4301.8,4301.7,4.41212928]
[1757091483491,0.026,4301.8,4301.7,6.73679162]
[1757091483699,0.324,4301.8,4301.7,6.73679162]
[1757091483899,0.324,4301.8,4301.7,4.41212928]
[1757091484094,0.324,4301.8,4301.7,4.41200239]
[1757091484299,0.324,4301.8,4301.7,6.73666473]
[1757091485008,0.7703,4301.8,4301.7,4.41200239]
[1757091485211,0.324,4301.8,4301.7,6.73666473]
[1757091485599,0.026,4301.8,4301.7,6.73666473]
[1757091485815,0.324,4301.8,4301.7,4.41200239]
[1757091486026,1.262,4301.8,4301.7,4.41200239]
[1757091486640,1.378,4301.8,4301.7,4.195]
[1757091486935,0.026,4301.8,4301.7,6.51966234]
[1757091487224,0.026,4301.8,4301.7,6.80846234]
[1757091487627,0.026,4301.8,4301.7,13.32658478]
[1757091487921,0.026,4301.8,4301.7,12.86008478]
[1757091488996,0.026,4301.8,4301.7,13.30278478]
[1757091489198,0.026,4301.8,4301.7,13.75648478]
[1757091491334,0.026,4301.8,4301.7,16.75648478]
[1757091491535,0.001,4302.3,4301.7,16.75648478]
[1757091491854,0.001,4302.4,4302.3,4.166]
[1757091492218,0.3097,4302.4,4302.3,4.166]
[1757091492718,1.2172,4302.4,4302.3,4.166]
[1757091493351,0.3097,4302.4,4302.3,4.166]
[1757091493914,0.7606,4302.4,4302.3,6.49033814]
[1757091494317,0.7606,4302.4,4302.3,4.166]
[1757091495156,0.7606,4302.4,4302.3,6.49033814]
[1757091495345,0.3097,4302.4,4302.3,4.166]
[1757091496637,0.3097,4302.4,4302.3,6.49033814]
[1757091496842,0.001,4302.4,4302.3,6.78123814]
[1757091497950,0.001,4302.4,4302.3,8.40880172]
[1757091498157,0.001,4302.4,4302.3,9.43820172]
[1757091499124,0.001,4302.4,4302.3,16.60820172]
[1757091499536,0.001,4302.4,4302.3,19.60820172]
[1757091501563,0.001,4302.4,4302.3,18.69480172]
[1757091501767,0.3097,4302.4,4302.3,18.40390172]
[1757091502068,1.2172,4302.4,4302.3,16.66033814]
[1757091502233,1.2172,4302.4,4302.3,11.336]
[1757091502431,1.2172,4302.4,4302.3,13.66033814]
[1757091502757,1.2172,4302.4,4302.3,13.66433814]
[1757091502935,1.2172,4302.4,4302.3,11.34]
[1757091503135,1.2172,4302.4,4302.3,13.66433814]
[1757091503468,1.2172,4302.4,4302.3,6.49433814]
[1757091503841,1.2172,4302.4,4302.3,4.17]
[1757091504866,1.2172,4302.4,4302.3,6.49433814]
[1757091505165,1.2172,4302.4,4302.3,4.17]
[1757091505372,1.2172,4302.4,4302.3,6.49433814]
[1757091506050,1.2172,4302.4,4302.3,4.17]
[1757091507167,1.2172,4302.4,4302.3,6.49433814]
[1757091507339,1.2172,4302.4,4302.3,11.74310609]
[1757091507340,0.001,4302.4,4302.3,11.74310609]
[1757091507540,0.001,4302.4,4302.3,11.45220609]
[1757091507735,0.001,4302.4,4302.3,11.74310609]
[1757091507940,0.001,4302.4,4302.3,14.74310609]
[1757091508452,0.001,4302.4,4302.3,10.54020609]
[1757091508648,0.7606,4302.4,4302.3,7.17]
[1757091508960,0.7606,4302.4,4302.3,4.17]
[1757091509270,0.7606,4302.4,4302.3,6.49433814]
[1757091509475,0.4566,4302.6,4302.5,2.32423009]
[1757091509663,0.001,4302.7,4302.4,6.18938196]
[1757091509864,0.001,4302.7,4302.5,2.34747239]
[1757091510061,0.001,4302.7,4302.6,2.61507607]
[1757091510263,0.001,4302.7,4302.6,2.78387607]
[1757091510578,0.001,4302.7,4302.6,2.32417607]
[1757091510783,0.001,4302.7,4302.6,2.61507607]
[1757091510987,0.001,4302.7,4302.6,3.07477607]
[1757091512290,0.001,4302.7,4302.6,3.09801783]
[1757091512591,0.001,4302.7,4302.6,6.98677607]
[1757091512886,0.001,4302.7,4302.6,8.30418669]
[1757091513265,0.001,4302.7,4302.6,15.92788669]
[1757091513778,0.001,4302.7,4302.6,15.47418669]
[1757091515160,0.001,4302.9,4302.8,11.78792774]
[1757091515487,0.587,4302.9,4302.8,9.61546804]
[1757091516693,0.1304,4302.9,4302.8,9.61546804]
[1757091516889,0.001,4302.9,4302.8,9.61546804]
[1757091517377,0.001,4302.9,4302.8,5.99436804]
[1757091517573,0.001,4302.9,4302.8,6.45406804]
[1757091517779,0.001,4302.9,4302.8,8.45168763]
[1757091518759,0.001,4302.9,4302.8,8.90538763]
[1757091519384,0.001,4302.9,4302.8,9.02138763]
[1757091519588,0.001,4302.9,4302.8,8.56768763]
[1757091520292,0.001,4302.9,4302.8,8.10798763]
[1757091520487,0.001,4302.9,4302.8,8.54478763]
[1757091520711,0.001,4302.9,4302.8,8.10798763]
[1757091520913,0.001,4302.9,4302.8,8.54478763]
[1757091521198,0.001,4302.9,4302.8,3.3794]
[1757091521199,0.621,4302.9,4302.8,3.3794]
[1757091521494,0.001,4302.9,4302.8,5.70346804]
[1757091521900,0.621,4302.9,4302.8,3.3794]
[1757091522194,0.1382,4302.9,4302.8,5.70346804]
[1757091522407,0.001,4302.9,4302.8,5.70346804]
[1757091522610,0.624,4302.9,4302.8,3.3794]
[1757091523258,0.624,4302.9,4302.8,5.70346804]
[1757091523458,0.001,4302.9,4302.8,5.70346804]
[1757091523656,0.621,4302.9,4302.8,3.3794]
[1757091524073,3.38501403,4302.9,4302.8,3.3794]
[1757091526796,11.1088943,4302.9,4302.8,3.3794]
[1757091527105,3.38501403,4302.9,4302.8,3.3794]
[1757091528503,2.94501403,4302.9,4302.8,3.3794]
[1757091531280,0.001,4302.9,4302.8,3.6865]
[1757091531474,0.117,4302.9,4302.8,3.3794]
[1757091531678,0.117,4302.9,4302.8,3.6865]
[1757091531876,0.117,4302.9,4302.8,4.1233]
[1757091533275,0.117,4302.9,4302.8,3.6865]
[1757091533594,0.117,4302.9,4302.8,4.1233]
[1757091534307,0.117,4302.9,4302.8,3.6865]
[1757091534606,0.117,4302.9,4302.8,3.3794]
[1757091534780,3.06101403,4302.9,4302.8,3.3794]
[1757091535489,3.50101403,4302.9,4302.8,3.3794]
[1757091535897,3.06101403,4302.9,4302.8,3.3794]
[1757091536888,0.737,4302.9,4302.8,3.3794]
[1757091537204,0.117,4302.9,4302.8,3.3794]
[1757091537383,0.2542,4302.9,4302.8,3.3794]
[1757091537711,0.117,4302.9,4302.8,3.6865]
[1757091538809,0.117,4302.9,4302.8,3.3794]
[1757091539106,2.44101403,4302.9,4302.8,3.3794]
[1757091539278,2.57821403,4302.9,4302.8,3.3794]
[1757091539698,0.2542,4302.9,4302.8,3.3794]
[1757091539897,0.117,4302.9,4302.8,3.6865]
[1757091540109,4.029,4302.9,4302.8,3.6865]
[1757091540312,4.1662,4302.9,4302.8,3.3794]
[1757091540477,4.649,4302.9,4302.8,3.3794]
[1757091541713,4.029,4302.9,4302.8,3.3794]
[1757091541912,4.029,4302.9,4302.8,4.1233]
[1757091542217,4.028,4302.9,4302.8,4.1273]
[1757091542607,6.97201403,4302.9,4302.8,3.3834]
[1757091543412,4.028,4302.9,4302.8,3.3834]
[1757091543781,4.028,4302.9,4302.8,3.6905]
[1757091543982,4.028,4302.9,4302.8,4.1273]
[1757091544911,0.001,4302.9,4302.8,6.94496804]
[1757091545112,3.912,4302.9,4302.8,6.94496804]
[1757091545817,3.912,4302.9,4302.8,6.45136804]
[1757091546716,3.912,4302.9,4302.8,4.1273]
[1757091547114,3.912,4302.9,4302.8,3.6905]
[1757091547316,3.912,4302.9,4302.8,6.45136804]
[1757091547915,0.001,4302.9,4302.8,6.45136804]
[1757091549019,0.1382,4302.9,4302.8,3.3834]
[1757091549231,0.621,4302.9,4302.8,3.3834]
[1757091549395,0.737,4302.9,4302.8,3.3834]
[1757091549808,3.06101403,4302.9,4302.8,3.3834]
[1757091550325,3.50101403,4302.9,4302.8,3.3834]
[1757091553820,3.06101403,4302.9,4302.8,3.3834]
[1757091554151,3.06101403,4302.9,4302.8,3.60118068]
[1757091554360,3.912,4302.9,4302.8,3.88708068]
[1757091554523,6.81921403,4302.9,4302.8,3.60118068]
[1757091555954,0.001,4302.9,4302.8,0.50768068]
[1757091556155,0.001,4302.9,4302.8,0.96728068]
[1757091556359,0.001,4302.9,4302.8,1.42008068]
[1757091556360,3.912,4302.9,4302.8,1.42008068]
[1757091556553,3.912,4302.9,4302.8,0.96728068]
[1757091557262,3.912,4302.9,4302.8,3.29134872]
[1757091557756,3.912,4302.9,4302.8,3.74414872]
[1757091557757,0.001,4302.9,4302.8,3.74414872]
[1757091557950,0.001,4302.9,4302.8,4.7420788]
[1757091559723,0.001,4302.9,4302.8,12.0324788]
[1757091564489,0.001,4302.9,4302.8,12.1484788]
[1757091565882,0.001,4302.9,4302.8,11.6956788]
[1757091568088,0.001,4302.9,4302.8,12.1484788]
[1757091568690,0.001,4302.9,4302.8,11.6956788]
[1757091570869,0.001,4302.9,4302.8,12.1484788]
[1757091571066,0.001,4303.3,4303.0,2.32396002]
[1757091571254,0.001,4303.3,4303.2,2.32385201]
[1757091571470,0.001,4303.3,4303.2,2.54163269]
[1757091572080,0.001,4303.3,4303.2,2.82753269]
[1757091572472,0.001,4303.3,4303.2,5.92003269]
[1757091573193,0.1121,4303.3,4303.2,5.92003269]
[1757091573392,0.1121,4303.3,4303.2,7.39327835]
[1757091573997,0.001,4303.3,4303.2,7.39327835]
[1757091575394,0.001,4303.3,4303.2,7.67917835]
[1757091575607,0.001,4303.3,4303.2,7.67873595]
[1757091576394,0.001,4303.3,4303.2,7.39283595]
[1757091577801,0.5842,4303.3,4303.2,7.39283595]
[1757091578190,0.001,4303.3,4303.2,7.39283595]
[1757091578797,0.001,4303.3,4303.2,7.39281603]
[1757091578986,0.001,4303.3,4303.2,7.67871603]
[1757091579297,0.001,4303.3,4303.2,7.39281603]
[1757091580679,0.001,4303.3,4303.2,8.12081603]
[1757091580877,0.001,4303.3,4303.2,7.69251603]
[1757091582304,0.001,4303.3,4303.2,6.21927037]
[1757091582507,0.001,4303.3,4303.2,5.91957037]
[1757091583294,0.5699,4303.3,4303.2,5.91957037]
[1757091583599,0.001,4303.3,4303.2,5.91957037]
[1757091585213,0.001,4303.3,4303.2,6.21927037]
[1757091585511,0.001,4303.3,4303.2,6.64757037]
[1757091585902,0.001,4303.3,4303.2,12.31412341]
[1757091586218,0.001,4303.3,4303.2,11.84472341]
[1757091588535,5.481371,4303.3,4303.2,11.84472341]
[1757091588884,5.481371,4303.3,4303.2,18.87537178]
[1757091589202,5.481371,4303.3,4303.2,18.99137178]
[1757091589715,5.481371,4303.3,4303.2,11.96072341]
[1757091589921,5.481371,4303.3,4303.2,10.67257037]
[1757091590431,5.481371,4303.3,4303.2,9.94457037]
[1757091590605,6.078671,4303.3,4303.2,3.59571836]
[1757091591192,6.078671,4303.3,4303.2,5.91957037]
[1757091591394,6.078671,4303.3,4303.2,5.70225201]
[1757091591595,5.481371,4303.3,4303.2,5.70225201]
[1757091591805,5.481371,4303.3,4303.2,6.00195201]
[1757091592129,5.481371,4303.3,4303.2,6.43025201]
[1757091592887,6.078671,4303.3,4303.2,3.3784]
[1757091593202,5.481371,4303.3,4303.2,3.3784]
[1757091593603,6.081671,4303.3,4303.2,3.3784]
[1757091596025,6.081671,4303.3,4303.2,5.70225201]
[1757091596329,6.081671,4303.3,4303.2,3.3784]
[1757091598303,6.081671,4303.3,4303.2,5.70225201]
[1757091598503,5.481371,4303.3,4303.2,5.70225201]
[1757091598741,5.481371,4303.3,4303.2,3.3784]
[1757091599237,5.481371,4303.3,4303.2,5.70225201]
[1757091600245,5.481371,4303.3,4303.2,6.43025201]
[1757091600415,5.481371,4303.3,4303.2,3.3784]
[1757091600740,6.078671,4303.3,4303.2,3.3784]
[1757091600926,14.96371738,4303.3,4303.2,3.3784]
[1757091601125,15.40131738,4303.3,4303.2,3.3784]
[1757091601304,2.32396002,4303.0,4302.9,3.3784]
[1757091601623,6.23196002,4303.0,4302.9,3.3784]
[1757091601828,7.26846002,4303.0,4302.9,3.3784]
[1757091602227,5.481371,4303.3,4302.9,3.6781]
[1757091602428,3.908,4303.2,4303.0,3.3784]
[1757091602742,3.908,4303.2,4303.1,2.75220602]
[1757091602944,3.908,4303.2,4303.1,3.05190602]
[1757091603140,3.908,4303.2,4303.1,0.728]
[1757091603441,3.908,4303.2,4303.1,3.05190602]
[1757091604630,5.597371,4303.3,4303.1,3.05190602]
[1757091604830,5.597371,4303.3,4303.2,0.4283]
[1757091605142,5.597371,4303.3,4303.0,3.3784]
[1757091605528,5.597371,4303.3,4303.0,5.70234844]
[1757091606113,5.597371,4303.3,4303.1,2.32389472]
[1757091606312,5.597371,4303.3,4303.2,0.2997]
[1757091606634,5.597371,4303.3,4303.2,0.728]
[1757091606944,6.194671,4303.3,4303.0,3.3784]
[1757091607111,0.4578,4303.2,4303.0,3.3784]
[1757091607314,0.4578,4303.2,4303.1,3.3784]
[1757091607539,5.547371,4303.3,4303.1,3.3784]
[1757091607714,2.32401403,4302.9,4302.8,0.004]
[1757091607915,6.23201403,4302.9,4302.8,0.004]
[1757091608241,7.26851403,4302.9,4302.8,0.004]
[1757091609446,6.98251403,4302.9,4302.8,0.004]
[1757091610149,7.26851403,4302.9,4302.8,0.004]
[1757091610532,7.21851403,4302.9,4302.8,0.004]
[1757091610732,6.93251403,4302.9,4302.8,0.004]
[1757091611115,7.21851403,4302.9,4302.8,0.004]
[1757091611334,6.93251403,4302.9,4302.8,0.004]
[1757091612347,7.21851403,4302.9,4302.8,0.004]
[1757091612650,6.93251403,4302.9,4302.8,0.004]
[1757091612850,6.63981403,4302.9,4302.8,0.004]
[1757091613150,6.93251403,4302.9,4302.8,0.004]
[1757091613331,6.42471403,4302.9,4302.8,0.004]
[1757091613534,6.13201403,4302.9,4302.8,0.004]
[1757091613739,6.13201403,4302.9,4302.8,0.745]
[1757091614257,6.13201403,4302.9,4302.8,0.298]
[1757091614455,6.13201403,4302.9,4302.8,0.004]
[1757091615116,6.25561403,4302.9,4302.8,0.004]
[1757091615346,7.17721403,4302.9,4302.8,0.004]
[1757091615876,7.96921403,4302.9,4302.8,0.004]
[1757091616163,7.91921403,4302.9,4302.8,0.004]
[1757091617023,6.08201403,4302.9,4302.8,0.004]
[1757091618341,6.20891403,4302.9,4302.8,0.004]
[1757091618547,6.67711403,4302.9,4302.8,0.004]
[1757091619068,6.62711403,4302.9,4302.8,0.004]
[1757091619247,7.07721403,4302.9,4302.8,0.004]
[1757091619560,6.62711403,4302.9,4302.8,0.004]
[1757091620221,7.07721403,4302.9,4302.8,0.004]
[1757091620425,6.62711403,4302.9,4302.8,0.004]
[1757091620669,6.62711403,4302.9,4302.8,0.298]
[1757091620670,6.23201403,4302.9,4302.8,0.298]
[1757091621640,6.82381403,4302.9,4302.8,0.004]
[1757091621844,7.27721403,4302.9,4302.8,0.004]
[1757091622218,6.82381403,4302.9,4302.8,0.004]
[1757091622420,6.35561403,4302.9,4302.8,0.004]
[1757091622622,6.23201403,4302.9,4302.8,0.298]
[1757091622823,6.23201403,4302.9,4302.8,0.745]
[1757091623568,6.35561403,4302.9,4302.8,0.004]
[1757091623750,6.82381403,4302.9,4302.8,0.004]
[1757091624272,7.27721403,4302.9,4302.8,0.004]
[1757091624439,6.82381403,4302.9,4302.8,0.004]
[1757091624641,6.23201403,4302.9,4302.8,0.004]
[1757091625461,6.23201403,4302.9,4302.8,0.298]
[1757091625678,6.23201403,4302.9,4302.8,0.745]
[1757091626560,3.908,4302.9,4302.8,0.745]
[1757091626743,6.23201403,4302.9,4302.8,0.745]
[1757091627462,6.23201403,4302.9,4302.8,0.298]
[1757091628191,6.82381403,4302.9,4302.8,0.004]
[1757091628348,7.27721403,4302.9,4302.8,0.004]
[1757091628876,13.8384624,4302.9,4302.8,0.004]
[1757091629239,6.82381403,4302.9,4302.8,0.004]
[1757091629444,6.23201403,4302.9,4302.8,0.004]
[1757091629974,6.82711403,4302.9,4302.8,0.004]
[1757091630275,6.35891403,4302.9,4302.8,0.004]
[1757091630442,6.23201403,4302.9,4302.8,0.004]
[1757091630848,6.23201403,4302.9,4302.8,0.745]
[1757091631279,6.23201403,4302.9,4302.8,0.298]
[1757091631662,6.23201403,4302.9,4302.8,0.745]
[1757091631663,3.908,4302.9,4302.8,0.745]
[1757091633581,3.909,4302.9,4302.8,4.945]
[1757091633985,0.001,4302.9,4302.8,5.9103]
[1757091634190,0.001,4302.9,4302.8,8.23436804]
[1757091634751,0.001,4302.9,4302.8,22.73436804]
[1757091637696,0.001,4302.9,4302.8,8.23436804]
[1757091638196,0.001,4302.9,4302.8,25.73436804]
[1757091639904,1.233371,4303.3,4303.2,2.32385201]
[1757091640068,1.233371,4303.3,4303.2,2.61915201]
[1757091640269,1.233371,4303.3,4303.2,3.96316107]
[1757091641209,0.001,4303.4,4303.3,5.32379801]
[1757091641371,0.001,4303.4,4303.3,13.97841487]
[1757091641708,0.001,4303.4,4303.3,31.04162284]
[1757091642600,0.001,4303.4,4303.3,38.59370598]
[1757091644104,0.001,4303.4,4303.3,38.70970598]
[1757091644308,0.001,4303.4,4303.3,27.33970598]
[1757091645895,0.001,4303.4,4303.3,23.40900598]
[1757091646812,0.001,4303.4,4303.3,8.61370598]
[1757091647031,0.001,4303.4,4303.3,6.34579801]
[1757091647177,0.3033,4303.4,4303.3,6.34579801]
[1757091647488,0.001,4303.4,4303.3,6.34579801]
[1757091647696,1.2743,4303.4,4303.2,3.906]
[1757091647918,0.4731,4303.3,4303.2,3.906]
[1757091648249,1.2733,4303.3,4303.2,3.906]
[1757091649115,0.8002,4303.3,4303.2,6.22985201]
[1757091649521,0.8002,4303.3,4303.2,3.906]
[1757091650012,0.3023,4303.3,4303.2,3.906]
[1757091650515,0.3023,4303.3,4303.2,6.22985201]
[1757091651008,0.3023,4303.3,4303.2,3.906]
[1757091651217,1.2733,4303.3,4302.9,0.116]
[1757091651515,0.971,4303.2,4302.9,6.34599835]